bitfinex/quotes_BTCUSD_20251212
["timestamp","ask_amount","ask_price","bid_price","bid_amount"]
[1765550370282,0.02431,92606.0,92605.0,0.00011635]
[1765550370662,0.01156,92616.0,92613.0,0.01079762]
[1765550370844,0.02431,92615.0,92613.0,0.01079762]
[1765550371060,0.01079808,92609.0,92606.0,1.00125162]
[1765550371257,0.01079808,92609.0,92605.0,0.01252777]
[1765550371258,0.0162,92607.0,92605.0,0.00011635]
[1765550371459,0.0162,92606.0,92605.0,0.00011635]
[1765550371658,0.01763657,92606.0,92605.0,0.00011635]
[1765550371905,0.04194657,92606.0,92605.0,0.00011635]
[1765550373090,0.01763657,92606.0,92605.0,0.00011635]
[1765550374498,0.01863657,92606.0,92605.0,0.00011635]
[1765550374845,0.01963657,92606.0,92605.0,0.00011635]
[1765550375363,0.04394657,92606.0,92605.0,0.00011635]
[1765550376917,0.07654716,92606.0,92605.0,0.00011635]
[1765550377126,0.07654716,92606.0,92581.0,0.2907]
[1765550377127,0.01080065,92587.0,92579.0,0.01080158]
[1765550377301,0.0244262,92587.0,92585.0,0.01080088]
[1765550377453,0.0244262,92587.0,92583.0,0.01080111]
[1765550377454,0.01156,92586.0,92584.0,0.010801]
[1765550377662,0.01156,92586.0,92585.0,0.21601771]
[1765550378215,0.05207,92586.0,92585.0,0.21601771]
[1765550378588,0.0001162,92587.0,92585.0,0.21763058]
[1765550378799,0.0081162,92587.0,92586.0,0.02938006]
[1765550378993,0.0081162,92587.0,92586.0,0.00191206]
[1765550379204,0.0081162,92587.0,92586.0,0.01881287]
[1765550379205,0.0041162,92587.0,92586.0,0.01881287]
[1765550379400,0.0001162,92587.0,92586.0,0.01881287]
[1765550380737,0.06776888,92587.0,92582.0,0.2907]
[1765550380950,0.06776888,92587.0,92585.0,0.21601538]
[1765550380951,0.0162,92586.0,92585.0,0.21601538]
[1765550381128,0.02431,92586.0,92585.0,0.21601771]
[1765550381369,0.04051,92586.0,92585.0,0.21601771]
[1765550382013,0.01080158,92579.0,92572.0,0.2907]
[1765550382242,0.22684151,92576.0,92568.0,0.22685968]
[1765550382464,0.01080391,92559.0,92556.0,0.01080426]
[1765550382682,0.01080403,92558.0,92554.0,0.0108045]
[1765550382901,0.02236403,92558.0,92555.0,0.01080438]
[1765550383113,0.01156,92558.0,92554.0,0.0108045]
[1765550383335,0.01156,92558.0,92549.0,0.2907]
[1765550383336,0.01080473,92552.0,92549.0,0.2907]
[1765550383554,0.21611808,92542.0,92541.0,0.00161287]
[1765550383776,0.21611808,92542.0,92520.0,0.01080847]
[1765550383777,0.0162,92542.0,92520.0,0.01080847]
[1765550383988,1.00198626,92570.0,92530.0,0.0108073]
[1765550383989,0.04451073,92533.0,92530.0,0.0108073]
[1765550384197,0.0162,92534.0,92530.0,0.21614459]
[1765550384428,0.04451073,92538.0,92522.0,0.01080824]
[1765550384429,0.21614797,92530.0,92522.0,0.01080824]
[1765550384653,0.01080777,92526.0,92522.0,0.01080824]
[1765550384900,0.01080777,92526.0,92522.0,0.21616332]
[1765550384901,0.04451073,92523.0,92522.0,0.21616332]
[1765550385115,0.06071073,92523.0,92522.0,0.21616332]
[1765550385326,0.0162,92523.0,92522.0,0.21616332]
[1765550385533,0.04051,92523.0,92522.0,0.21616332]
[1765550386212,0.05607073,92531.0,92530.0,0.21614611]
[1765550386431,0.04451073,92529.0,92528.0,0.01080753]
[1765550386647,0.06071073,92529.0,92528.0,0.01080753]
[1765550386865,0.01156,92531.0,92529.0,0.21614845]
[1765550387288,0.02431,92543.0,92540.0,0.21612108]
[1765550387508,0.02431,92550.0,92544.0,0.22691807]
[1765550387683,0.01724,92553.0,92552.0,0.21609473]
[1765550387910,0.01080368,92561.0,92552.0,0.21609473]
[1765550387911,0.02236403,92558.0,92554.0,0.0108045]
[1765550388115,0.01156,92558.0,92556.0,0.21608539]
[1765550388523,0.04051,92557.0,92556.0,0.21608539]
[1765550388696,0.01156,92558.0,92556.0,0.21608539]
[1765550388941,0.01156,92558.0,92556.0,0.21647323]
[1765550389375,0.03879,92557.0,92556.0,0.00238784]
[1765550389783,0.05298043,92557.0,92556.0,0.00238784]
[1765550390003,0.09749116,92557.0,92556.0,0.00238784]
[1765550390243,0.09749116,92557.0,92542.0,0.23335705]
[1765550390244,0.21611005,92546.0,92544.0,0.00161287]
[1765550390464,0.04451073,92543.0,92542.0,0.0108059]
[1765550390869,0.08330073,92543.0,92542.0,0.0108059]
[1765550391436,0.03879,92543.0,92542.0,0.0108059]
[1765550391677,0.01175,92545.0,92543.0,0.21611575]
[1765550391901,0.01080672,92535.0,92531.0,0.01080718]
[1765550392108,0.0553185,92526.0,92523.0,0.01080812]
[1765550392313,0.04451073,92525.0,92523.0,0.00011618]
[1765550392464,0.02749,92524.0,92523.0,0.00011618]
[1765550392664,0.19533957,92524.0,92523.0,0.00011618]
[1765550393219,0.24933204,92524.0,92523.0,0.00011618]
[1765550393356,0.24433204,92524.0,92523.0,0.00011618]
[1765550393559,0.29435043,92524.0,92523.0,0.00011618]
[1765550393810,0.19406159,92524.0,92523.0,0.00011618]
[1765550394018,0.19406159,92524.0,92523.0,0.00111618]
[1765550394224,0.19406159,92524.0,92523.0,0.00011618]
[1765550394629,0.19906159,92524.0,92523.0,0.00111618]
[1765550395043,0.19406159,92524.0,92523.0,0.00011618]
[1765550395261,0.20106159,92524.0,92523.0,0.00111618]
[1765550395885,0.20406159,92524.0,92523.0,0.00211618]
[1765550396310,0.31087658,92524.0,92523.0,0.00211618]
[1765550396646,0.30787658,92524.0,92523.0,0.00111618]
[1765550396840,0.31287658,92524.0,92523.0,0.00211618]
[1765550397627,1.05767358,92524.0,92523.0,0.00211618]
[1765550397826,0.01081162,92493.0,92490.0,0.0002]
[1765550398034,0.02749,92491.0,92490.0,0.00031653]
[1765550398228,0.33825637,92491.0,92490.0,0.00031653]
[1765550398444,0.36130637,92491.0,92490.0,0.00031653]
[1765550399568,0.14506912,92491.0,92490.0,0.00031653]
[1765550400045,0.005,92491.0,92490.0,0.0029294]
[1765550400369,0.04379,92491.0,92490.0,0.00131653]
[1765550400580,0.10554921,92491.0,92490.0,0.00231653]
[1765550400849,0.10554921,92491.0,92484.0,0.21625259]
[1765550400850,0.01081361,92476.0,92469.0,0.01377227]
[1765550401050,0.06025073,92470.0,92469.0,0.00295784]
[1765550401474,0.01175,92471.0,92469.0,0.00295784]
[1765550401692,0.01175,92471.0,92470.0,0.21628636]
[1765550402106,0.00111608,92476.0,92473.0,0.22709097]
[1765550402317,0.00211608,92476.0,92473.0,0.01081396]
[1765550402528,0.27653709,92470.0,92469.0,0.00595784]
[1765550402947,0.27653709,92470.0,92450.0,1.00098627]
[1765550402948,0.01081583,92457.0,92454.0,0.01081618]
[1765550403164,0.01574,92455.0,92454.0,0.01081618]
[1765550403376,0.02305,92479.0,92469.0,0.22710079]
[1765550403605,0.02305,92479.0,92474.0,0.216277]
[1765550403814,0.01081303,92481.0,92474.0,0.216277]
[1765550404018,0.01081303,92481.0,92470.0,0.21628636]
[1765550404019,0.03879,92475.0,92469.0,0.01181443]
[1765550404231,0.28204475,92470.0,92469.0,0.001]
[1765550404440,0.32655548,92470.0,92469.0,0.001]
[1765550404650,0.34960548,92470.0,92469.0,0.001]
[1765550405543,0.05001839,92462.0,92456.0,0.01081595]
[1765550405752,0.04451073,92458.0,92457.0,0.01081583]
[1765550405962,0.05626073,92461.0,92458.0,0.22713015]
[1765550406614,0.06575839,92459.0,92458.0,0.22712821]
[1765550407046,0.04451073,92465.0,92461.0,0.01081537]
[1765550407270,0.02305,92464.0,92462.0,0.22712032]
[1765550407493,0.04451073,92465.0,92462.0,0.22712032]
[1765550408148,0.01724,92470.0,92469.0,0.2162887]
[1765550408356,0.06737447,92476.0,92475.0,0.21627466]
[1765550409041,0.04451073,92474.0,92473.0,0.22709157]
[1765550409244,0.06025073,92474.0,92473.0,0.22709157]
[1765550409447,0.08330073,92474.0,92473.0,0.22709157]
[1765550410084,0.00011608,92476.0,92473.0,0.22709157]
[1765550410085,0.00011608,92476.0,92475.0,0.21627466]
[1765550410311,0.00411608,92476.0,92475.0,0.21888753]
[1765550411391,0.00711608,92476.0,92475.0,0.21888753]
[1765550411611,0.00011608,92476.0,92475.0,0.21788753]
[1765550411787,0.00111608,92476.0,92475.0,0.21788753]
[1765550412909,0.00111608,92476.0,92475.0,0.50858753]
[1765550413546,0.00211608,92476.0,92475.0,0.55171551]
[1765550414209,0.00211608,92476.0,92475.0,0.50858753]
[1765550414656,0.01081408,92472.0,92465.0,0.0108149]
[1765550414870,0.01081408,92472.0,92462.0,0.01081525]
[1765550414871,0.09452912,92463.0,92462.0,0.01081525]
[1765550415108,0.11026912,92462.0,92461.0,0.00023033]
[1765550415315,0.13331912,92462.0,92461.0,0.00023033]
[1765550415735,0.04451073,92470.0,92464.0,0.21630039]
[1765550415937,0.00211608,92476.0,92473.0,0.22709152]
[1765550415938,0.00011608,92476.0,92473.0,0.22709152]
[1765550416088,0.00011608,92476.0,92475.0,0.21627466]
[1765550416295,0.03397969,92476.0,92467.0,0.01081466]
[1765550416474,0.21627934,92473.0,92468.0,0.01081455]
[1765550416678,0.09452912,92471.0,92470.0,0.21628636]
[1765550416878,0.00011608,92476.0,92474.0,0.216277]
[1765550417304,0.00011608,92476.0,92474.0,0.21788987]
[1765550419240,0.00111608,92476.0,92475.0,0.2907]
[1765550419401,0.00211608,92476.0,92475.0,0.29231287]
[1765550420042,0.00111608,92476.0,92475.0,0.29231287]
[1765550420246,0.00211608,92476.0,92475.0,0.29231287]
[1765550420806,0.00011608,92476.0,92475.0,0.29231287]
[1765550421246,0.00111608,92476.0,92475.0,0.29231287]
[1765550422056,0.00011608,92476.0,92475.0,0.29231287]
[1765550422213,0.00111608,92476.0,92475.0,0.29231287]
[1765550422637,0.00011608,92476.0,92475.0,0.29231287]
[1765550422803,0.00111608,92476.0,92475.0,0.33544085]
[1765550423029,0.00211608,92476.0,92475.0,0.33944085]
[1765550423207,0.02702206,92517.0,92508.0,0.22700738]
[1765550423416,0.01186638,92511.0,92508.0,0.22700738]
[1765550423823,0.02346,92510.0,92508.0,0.22700738]
[1765550424442,0.01521,92509.0,92508.0,0.22700738]
[1765550424670,0.01521,92509.0,92503.0,0.01081046]
[1765550424671,0.04451073,92506.0,92503.0,0.01081046]
[1765550424869,0.01521,92504.0,92503.0,0.22701927]
[1765550425065,0.01081116,92497.0,92494.0,0.68411785]
[1765550425281,0.01081326,92479.0,92475.0,0.00861287]
[1765550425504,0.02722,92476.0,92475.0,0.007]
[1765550425720,0.05068,92476.0,92475.0,0.007]
[1765550426062,0.17743634,92476.0,92475.0,0.007]
[1765550426226,0.2608158,92462.0,92453.0,0.21632494]
[1765550426461,0.08318073,92462.0,92461.0,0.00034641]
[1765550426668,0.13319912,92462.0,92461.0,0.00034641]
[1765550426910,0.20203306,92462.0,92461.0,0.00034641]
[1765550427306,0.01081841,92435.0,92432.0,0.01081876]
[1765550427506,0.00011625,92435.0,92433.0,0.2163709]
[1765550428429,0.00111625,92435.0,92433.0,0.2163709]
[1765550428615,0.00211625,92435.0,92433.0,0.2163709]
[1765550428956,0.00111625,92435.0,92433.0,0.2163709]
[1765550429546,0.00111625,92435.0,92434.0,0.2907]
[1765550429665,0.00111625,92435.0,92434.0,0.29231287]
[1765550429861,0.00211625,92435.0,92434.0,0.29231287]
[1765550430349,0.00211625,92435.0,92434.0,0.34638241]
[1765550430350,0.00111625,92435.0,92434.0,0.34638241]
[1765550430799,0.00211625,92435.0,92434.0,0.34638241]
[1765550431011,0.00211625,92435.0,92434.0,0.36366241]
[1765550431208,0.00011625,92435.0,92434.0,0.36366241]
[1765550431531,0.00111625,92435.0,92434.0,0.36366241]
[1765550431750,0.01728,92466.0,92434.0,0.36366241]
[1765550431751,0.01728,92466.0,92463.0,0.01081513]
[1765550431999,0.03547,92476.0,92473.0,0.2270933]
[1765550432218,0.02346,92486.0,92485.0,0.21625128]
[1765550432432,0.02346,92486.0,92483.0,0.22706723]
[1765550432433,0.04451073,92484.0,92483.0,0.22706723]
[1765550432636,0.05972073,92484.0,92483.0,0.22706723]
[1765550432835,0.08318073,92484.0,92483.0,0.22706723]
[1765550433040,0.03867,92484.0,92481.0,0.01081303]
[1765550433243,0.06797073,92483.0,92482.0,0.21625829]
[1765550433441,0.11798912,92483.0,92482.0,0.21625829]
[1765550433683,0.05001839,92480.0,92470.0,0.22710027]
[1765550433890,0.05001839,92480.0,92441.0,0.4327039]
[1765550433891,0.04451073,92472.0,92471.0,0.0108142]
[1765550434096,0.04451073,92472.0,92468.0,0.01081455]
[1765550434097,0.04451073,92469.0,92468.0,0.01081455]
[1765550434528,0.08318073,92469.0,92468.0,0.01081455]
[1765550435544,0.09018073,92469.0,92468.0,0.01081455]
[1765550435743,0.0991988,92469.0,92468.0,0.01081455]
[1765550435966,0.1051988,92469.0,92468.0,0.01181455]
[1765550436170,0.05751073,92469.0,92468.0,0.01181455]
[1765550436302,0.07497073,92469.0,92468.0,0.01081455]
[1765550436505,0.09018073,92469.0,92468.0,0.01081455]
[1765550436711,0.09518073,92469.0,92468.0,0.01181455]
[1765550437023,0.08818073,92469.0,92468.0,0.01181455]
[1765550437226,0.005,92469.0,92468.0,0.01342742]
[1765550437433,0.005,92469.0,92468.0,0.06749696]
[1765550437780,0.01,92469.0,92468.0,0.06749696]
[1765550437991,0.005,92469.0,92468.0,0.06649696]
[1765550438196,0.04462715,92486.0,92468.0,0.06649696]
[1765550438197,0.00011642,92486.0,92483.0,0.01081279]
[1765550438408,0.00011642,92486.0,92485.0,0.21625128]
[1765550438522,0.00011642,92486.0,92483.0,0.22706707]
[1765550438728,0.05972073,92484.0,92483.0,0.01081279]
[1765550438925,0.05972073,92484.0,92477.0,0.01081349]
[1765550439132,0.03795997,92486.0,92477.0,0.01081349]
[1765550439133,0.05972073,92478.0,92477.0,0.01081349]
[1765550439553,0.00011642,92486.0,92477.0,0.01081349]
[1765550439554,0.00111642,92486.0,92485.0,0.21625128]
[1765550440307,0.05001839,92485.0,92483.0,0.002]
[1765550440539,0.04451073,92472.0,92470.0,0.01081431]
[1765550440705,0.04451073,92472.0,92471.0,0.0108142]
[1765550440907,0.09452912,92477.0,92476.0,0.01081361]
[1765550441115,0.04451073,92482.0,92481.0,0.01081303]
[1765550441338,0.02546,92484.0,92483.0,0.21625596]
[1765550441474,0.03867,92484.0,92481.0,0.22707344]
[1765550441700,0.05972073,92482.0,92481.0,0.22707344]
[1765550442117,0.08318073,92482.0,92481.0,0.22707344]
[1765550442356,0.04451073,92480.0,92478.0,0.01081338]
[1765550442555,0.04451073,92480.0,92477.0,0.01081349]
[1765550442556,0.04224316,92479.0,92477.0,0.01081349]
[1765550442764,0.02703316,92479.0,92478.0,0.21626765]
[1765550442969,0.01201,92490.0,92485.0,0.21625128]
[1765550443684,0.02702907,92493.0,92485.0,0.21625128]
[1765550444030,0.04451073,92499.0,92485.0,0.21786415]
[1765550444031,0.06179073,92499.0,92485.0,0.21786415]
[1765550444253,0.02702761,92498.0,92485.0,0.21786415]
[1765550444452,0.01201,92491.0,92485.0,0.21786415]
[1765550445092,0.03878642,92486.0,92485.0,0.00161287]
[1765550445306,0.03878642,92486.0,92483.0,0.22706693]
[1765550445307,0.04451073,92484.0,92483.0,0.01081279]
[1765550445531,0.04451073,92485.0,92484.0,0.21625362]
[1765550445975,0.02346,92485.0,92484.0,0.21625362]
[1765550446182,0.02346,92485.0,92483.0,0.22706867]
[1765550446382,0.01521,92484.0,92483.0,0.22706867]
[1765550446586,0.005,92484.0,92483.0,0.22968154]
[1765550447312,0.005,92484.0,92483.0,0.52038154]
[1765550447739,0.003,92484.0,92483.0,0.51938154]
[1765550449075,0.00011642,92486.0,92485.0,0.50695128]
[1765550449318,0.00011642,92486.0,92485.0,0.50856415]
[1765550450491,0.00011642,92486.0,92485.0,0.55169213]
[1765550450955,0.00111642,92486.0,92485.0,0.55369213]
[1765550451161,0.00111642,92486.0,92485.0,0.55569213]
[1765550451338,0.01155,92521.0,92519.0,0.21617181]
[1765550451516,0.01166636,92521.0,92519.0,0.21617181]
[1765550451720,0.01166636,92521.0,92519.0,0.21778468]
[1765550451721,0.00011636,92521.0,92519.0,0.21778468]
[1765550452282,0.00011636,92521.0,92520.0,0.2907]
[1765550452419,0.00011636,92521.0,92520.0,0.34638241]
[1765550452627,0.00111636,92521.0,92520.0,0.34638241]
[1765550453048,0.00011636,92521.0,92520.0,0.34638241]
[1765550453229,0.00011636,92521.0,92520.0,0.38951039]
[1765550453616,0.00111636,92521.0,92520.0,0.29431287]
[1765550453828,0.00111636,92521.0,92520.0,0.31155287]
[1765550454029,0.00111636,92521.0,92520.0,0.29431287]
[1765550454451,0.00111636,92521.0,92520.0,0.29631287]
[1765550454677,0.00011636,92521.0,92520.0,0.29231287]
[1765550455082,0.00011636,92521.0,92520.0,0.29331287]
[1765550455279,0.00011636,92521.0,92520.0,0.29231287]
[1765550455576,0.00011636,92521.0,92520.0,0.29431287]
[1765550456133,0.00011636,92521.0,92520.0,0.29231287]
[1765550456318,0.00111636,92521.0,92520.0,0.29631287]
[1765550456676,0.00011636,92521.0,92520.0,0.29231287]
[1765550457092,0.00111636,92521.0,92520.0,0.33844085]
[1765550457293,0.00111636,92521.0,92520.0,0.33944085]
[1765550457548,0.00011636,92521.0,92520.0,0.33544085]
[1765550457918,0.00111636,92521.0,92520.0,0.34144085]
[1765550458242,1e-08,92521.0,92520.0,0.34144085]
[1765550458450,0.0029568,92548.0,92547.0,0.21610641]
[1765550458662,0.0029568,92548.0,92547.0,0.21771928]
[1765550460594,0.0029568,92548.0,92547.0,0.21971928]
[1765550461063,0.0039568,92548.0,92547.0,0.22171928]
[1765550461265,0.0039568,92548.0,92547.0,0.22371928]
[1765550461468,0.0029568,92548.0,92547.0,0.21971928]
[1765550461681,0.0029568,92548.0,92547.0,0.21771928]
[1765550461892,0.0029568,92548.0,92547.0,0.21871928]
[1765550462561,0.0029568,92548.0,92547.0,0.50941928]
[1765550463189,0.0039568,92548.0,92547.0,0.51241928]
[1765550463410,0.0039568,92548.0,92547.0,0.55554726]
[1765550463930,0.0029568,92548.0,92547.0,0.55254726]
[1765550464136,0.0029568,92548.0,92547.0,0.50841928]
[1765550464336,0.0452168,92548.0,92547.0,0.00661287]
[1765550464621,0.0049568,92548.0,92547.0,0.22571928]
[1765550464979,0.0039568,92548.0,92547.0,0.22071928]
[1765550465378,0.0029568,92548.0,92547.0,0.21771928]
[1765550466718,0.0029568,92548.0,92547.0,0.21871928]
[1765550466879,0.0039568,92548.0,92547.0,0.22071928]
[1765550467523,0.24425443,92535.0,92534.0,0.06388947]
[1765550467852,0.26076201,92485.0,92484.0,0.01678142]
[1765550468059,0.26076201,92485.0,92440.0,0.00199998]
[1765550468060,0.04451073,92468.0,92467.0,0.01081466]
[1765550468264,0.2907,92476.0,92473.0,0.01081396]
[1765550468528,0.04451073,92468.0,92467.0,0.00011636]
[1765550468723,0.38522912,92468.0,92467.0,0.00011636]
[1765550469695,0.05001839,92468.0,92467.0,0.00011636]
[1765550469943,0.05001839,92468.0,92467.0,0.00172923]
[1765550470143,0.21627127,92477.0,92467.0,0.00172923]
[1765550470144,0.01081314,92480.0,92471.0,0.0108142]
[1765550470472,0.01081326,92479.0,92471.0,0.00161287]
[1765550470682,0.011,92485.0,92479.0,0.01242613]
[1765550470894,0.02181256,92485.0,92482.0,0.01081291]
[1765550471137,0.02181256,92485.0,92474.0,0.21627402]
[1765550471138,0.01081431,92470.0,92467.0,0.00111636]
[1765550471373,0.01081431,92470.0,92467.0,0.00011636]
[1765550471374,2.60152016,92468.0,92467.0,0.00011636]
[1765550471598,2.61880016,92468.0,92467.0,0.00011636]
[1765550471814,2.61880016,92468.0,92467.0,1e-08]
[1765550472045,2.60155291,92454.0,92420.0,0.0002]
[1765550472281,2.60155291,92454.0,92453.0,0.00034679]
[1765550473538,2.61237389,92454.0,92453.0,0.00034679]
[1765550474450,2.62969389,92454.0,92453.0,0.00034679]
[1765550474652,2.63087291,92454.0,92453.0,0.00134679]
[1765550474831,1.12136691,92454.0,92453.0,0.00134679]
[1765550475039,1.23187453,92454.0,92453.0,0.00134679]
[1765550476574,0.95262253,92454.0,92453.0,0.00134679]
[1765550476916,0.41889352,92454.0,92453.0,0.00134679]
[1765550477149,0.25664379,92454.0,92453.0,0.00134679]
[1765550477378,0.30115452,92454.0,92453.0,0.00134679]
[1765550477558,0.35117291,92454.0,92453.0,0.00134679]
[1765550477762,0.48993091,92454.0,92453.0,0.00134679]
[1765550477899,0.33917291,92454.0,92453.0,0.00034679]
[1765550478304,0.33617291,92454.0,92453.0,0.00034679]
[1765550478526,0.33617291,92454.0,92453.0,0.00195966]
[1765550478527,0.008,92454.0,92453.0,0.00195966]
[1765550478729,0.017,92454.0,92453.0,0.00195966]
[1765550479586,0.008,92454.0,92453.0,0.21828579]
[1765550479800,0.06083434,92456.0,92453.0,0.00195966]
[1765550480028,0.003,92454.0,92453.0,0.00195966]
[1765550480212,0.05601839,92454.0,92453.0,0.00195966]
[1765550480636,0.006,92454.0,92453.0,0.00195966]
[1765550480934,0.003,92454.0,92453.0,0.00195966]
[1765550481173,0.003,92454.0,92453.0,0.04111966]
[1765550481584,0.05217968,92477.0,92476.0,0.21627233]
[1765550481805,0.05217968,92477.0,92476.0,0.2178852]
[1765550482163,0.05217968,92477.0,92476.0,0.00161287]
[1765550482767,0.05217968,92477.0,92476.0,0.04077287]
[1765550482962,0.26626265,92488.0,92482.0,0.01081291]
[1765550483290,0.05001839,92487.0,92485.0,0.01081256]
[1765550483449,0.01081034,92504.0,92492.0,0.22704482]
[1765550483655,0.02702585,92504.0,92500.0,0.01081081]
[1765550483882,0.01081046,92503.0,92498.0,0.01081104]
[1765550484091,0.04451073,92505.0,92498.0,0.01081104]
[1765550484303,0.01081046,92503.0,92498.0,0.01081104]
[1765550484503,0.01081034,92504.0,92495.0,0.01081139]
[1765550484721,0.05532002,92513.0,92510.0,0.01080964]
[1765550484956,0.01080952,92511.0,92499.0,0.01081092]
[1765550485155,0.0270241,92510.0,92507.0,0.21619985]
[1765550485365,0.05001839,92514.0,92510.0,0.21619284]
[1765550485565,0.05001839,92514.0,92511.0,0.01080952]
[1765550485566,0.05013466,92514.0,92511.0,0.01080952]
[1765550485772,0.00011627,92514.0,92511.0,0.01080952]
[1765550485998,0.00011627,92514.0,92512.0,0.21618817]
[1765550486217,0.00011627,92514.0,92509.0,0.01080975]
[1765550486439,0.00783183,92514.0,92511.0,0.2269992]
[1765550487241,0.00211627,92514.0,92511.0,0.2269992]
[1765550487447,0.00411627,92514.0,92513.0,0.21618583]
[1765550487697,0.00211627,92514.0,92513.0,0.21618583]
[1765550487917,0.22710965,92514.0,92511.0,0.00161287]
[1765550488121,0.04451073,92506.0,92504.0,0.01081034]
[1765550488540,0.05001839,92508.0,92505.0,0.01081022]
[1765550488797,0.02702468,92508.0,92506.0,0.21620219]
[1765550489007,0.00511627,92514.0,92513.0,0.21618583]
[1765550489216,0.00511627,92514.0,92513.0,0.2742387]
[1765550489427,0.21611212,92545.0,92513.0,0.2742387]
[1765550489428,0.01080532,92547.0,92540.0,0.01080613]
[1765550489631,0.00011633,92547.0,92544.0,0.01080567]
[1765550489843,0.00011633,92547.0,92545.0,0.21611108]
[1765550490055,0.00011633,92547.0,92544.0,0.01080567]
[1765550490257,0.05001839,92545.0,92544.0,0.01080567]
[1765550490465,0.04451073,92546.0,92544.0,0.01080567]
[1765550490668,0.04451073,92546.0,92545.0,0.21611108]
[1765550490876,0.09452912,92546.0,92545.0,0.21611108]
[1765550491095,0.04451073,92546.0,92545.0,0.21611108]
[1765550491391,0.04451073,92546.0,92542.0,0.0108059]
[1765550491609,0.05401839,92545.0,92544.0,0.001]
[1765550491819,0.05001839,92545.0,92544.0,0.001]
[1765550493119,0.05001839,92545.0,92542.0,0.0108059]
[1765550493328,0.05001839,92545.0,92542.0,0.22692329]
[1765550493491,0.04851073,92546.0,92542.0,0.22692329]
[1765550493492,0.003,92546.0,92545.0,0.21611108]
[1765550493913,0.00011633,92547.0,92545.0,0.21611108]
[1765550494291,0.00703564,92547.0,92545.0,0.21611108]
[1765550495009,0.05013472,92547.0,92545.0,0.21611108]
[1765550495346,0.05013472,92547.0,92544.0,0.01080567]
[1765550495571,0.26624276,92547.0,92542.0,0.0128059]
[1765550495764,0.05001839,92543.0,92542.0,0.002]
[1765550495970,0.00011633,92547.0,92543.0,0.22692153]
[1765550496177,0.01080555,92545.0,92542.0,0.001]
[1765550496407,0.01080555,92545.0,92529.0,0.01080742]
[1765550496408,0.05001839,92540.0,92536.0,0.22693795]
[1765550496611,0.05001839,92540.0,92537.0,0.01080648]
[1765550497368,0.06082441,92541.0,92537.0,0.01080648]
[1765550497551,0.22692888,92540.0,92535.0,0.01080672]
[1765550497954,0.006,92540.0,92538.0,0.21612742]
[1765550498176,0.05001839,92544.0,92543.0,0.21611459]
[1765550498408,0.00011633,92547.0,92546.0,0.21610874]
[1765550498621,0.00011633,92547.0,92546.0,0.25023161]
[1765550498822,0.00011633,92547.0,92546.0,0.27416161]
[1765550499242,0.00011633,92547.0,92546.0,0.25023161]
[1765550499620,0.00011633,92547.0,92546.0,0.27416161]
[1765550500407,0.00011633,92547.0,92546.0,0.25688161]
[1765550500612,0.00011633,92547.0,92546.0,0.27416161]
[1765550500813,0.00011633,92547.0,92546.0,0.25223161]
[1765550501093,0.00111633,92547.0,92546.0,0.25223161]
[1765550501720,0.00111633,92547.0,92546.0,0.21972161]
[1765550501930,0.00111633,92547.0,92546.0,0.27616161]
[1765550502343,0.21604676,92573.0,92546.0,0.27616161]
[1765550502344,0.04451073,92581.0,92577.0,0.01080181]
[1765550502516,0.02779137,92580.0,92577.0,0.01080181]
[1765550502940,0.05088063,92578.0,92577.0,0.01080181]
[1765550503144,0.00086224,92578.0,92577.0,0.01080181]
[1765550503712,0.00086224,92578.0,92577.0,0.01280181]
[1765550504126,0.00086224,92578.0,92577.0,0.01080181]
[1765550504524,0.00086224,92578.0,92577.0,0.001]
[1765550504525,0.00386224,92578.0,92577.0,0.001]
[1765550505070,0.04737297,92578.0,92576.0,0.21603806]
[1765550505279,0.04737297,92578.0,92562.0,0.21607049]
[1765550505280,0.01080298,92567.0,92561.0,0.01080368]
[1765550505434,0.01080298,92567.0,92560.0,0.22687958]
[1765550505435,0.05531406,92564.0,92560.0,0.22687958]
[1765550505645,0.04451073,92564.0,92560.0,0.0108038]
[1765550505823,0.04451073,92564.0,92554.0,0.21608819]
[1765550505824,0.01080415,92557.0,92552.0,0.01080473]
[1765550506026,0.05001839,92554.0,92550.0,0.01080497]
[1765550506254,0.06082289,92554.0,92550.0,0.01080497]
[1765550506639,0.06082289,92554.0,92542.0,0.21611601]
[1765550506640,0.01080543,92546.0,92543.0,0.01080578]
[1765550506849,0.04451073,92545.0,92543.0,0.22692137]
[1765550507052,0.05001839,92556.0,92551.0,0.01080485]
[1765550507262,0.05001839,92547.0,92546.0,0.01080543]
[1765550507467,0.05001839,92547.0,92546.0,0.2269119]
[1765550507885,0.001,92554.0,92546.0,0.2269119]
[1765550507886,0.09452912,92553.0,92548.0,0.0108052]
[1765550508097,0.06082359,92548.0,92536.0,0.0108066]
[1765550508302,0.21614001,92533.0,92531.0,0.00161287]
[1765550508509,0.01080824,92522.0,92518.0,0.0108087]
[1765550508730,0.21617251,92519.0,92513.0,0.2269933]
[1765550508938,0.21617251,92519.0,92505.0,0.02393]
[1765550508939,0.05001839,92510.0,92503.0,0.22701937]
[1765550509148,0.05001839,92510.0,92508.0,0.21619751]
[1765550509358,0.05001839,92510.0,92509.0,0.21619498]
[1765550509559,0.05001839,92512.0,92509.0,0.22700473]
[1765550509876,0.05001839,92512.0,92509.0,0.22712106]
[1765550510300,0.003,92510.0,92509.0,0.22712106]
[1765550510527,0.05001839,92528.0,92520.0,0.01080847]
[1765550510768,0.05001839,92528.0,92526.0,0.21615545]
[1765550510998,0.09452912,92529.0,92525.0,0.01080788]
[1765550511144,0.05001839,92523.0,92520.0,0.22697708]
[1765550511347,0.09452912,92521.0,92520.0,0.22697708]
[1765550511533,0.05001839,92521.0,92520.0,0.22697708]
[1765550512937,0.05601839,92521.0,92520.0,0.22797708]
[1765550513391,0.05001839,92520.0,92518.0,0.22698112]
[1765550513594,0.04451073,92514.0,92513.0,0.01080929]
[1765550513795,0.0108094,92512.0,92509.0,0.00011633]
[1765550513969,0.09452912,92510.0,92509.0,0.01092608]
[1765550514173,0.05001839,92510.0,92509.0,0.01092608]
[1765550514803,0.05001839,92520.0,92519.0,0.21617181]
[1765550515028,0.21613393,92536.0,92519.0,0.21617181]
[1765550515029,0.2907,92543.0,92537.0,0.01080648]
[1765550515279,0.02893826,92551.0,92537.0,0.01080648]
[1765550515280,0.05408096,92542.0,92540.0,0.21612275]
[1765550515510,0.05408096,92542.0,92537.0,0.01241935]
[1765550515511,0.04451073,92569.0,92562.0,0.21607138]
[1765550515744,0.04451073,92569.0,92566.0,0.22686515]
[1765550515990,0.05001839,92568.0,92567.0,0.21605971]
[1765550516168,0.05040609,92568.0,92567.0,0.21605971]
[1765550516386,0.00096259,92568.0,92567.0,0.21605971]
[1765550518665,0.00496259,92568.0,92567.0,0.21705971]
[1765550519051,0.00096259,92568.0,92567.0,0.21605971]
[1765550519260,0.00396259,92568.0,92567.0,0.21605971]
[1765550519665,0.00096259,92568.0,92567.0,0.21605971]
[1765550519920,0.05498098,92568.0,92567.0,0.21705971]